fUST/lending_fUST_20260527
["ID","MTS","AMOUNT","RATE_DAILY","PERIOD"]
[423119406,1779865832000,-500.0,8.308e-05,2]
[423119405,1779865832000,-500.0,8.308e-05,2]
[423119402,1779865832000,-500.0,8.308e-05,2]
[423119403,1779865832000,-500.0,8.308e-05,2]
[423119400,1779865832000,-136.75298432,8.308e-05,2]
[423119397,1779865832000,-500.0,8.308e-05,2]
[423119408,1779865832000,-500.0,8.308e-05,2]
[423119435,1779865838000,-500.0,8.308e-05,2]
[423119433,1779865838000,-500.0,8.308e-05,2]
[423119432,1779865838000,-160.0133475,8.308e-05,2]
[423119434,1779865838000,-500.0,8.308e-05,2]
[423119436,1779865838000,-500.0,8.308e-05,2]
[423119438,1779865838000,-500.0,8.308e-05,2]
[423119437,1779865838000,-500.0,8.308e-05,2]
[423119440,1779865838000,-224.40031658,8.308e-05,2]
[423119442,1779865838000,-52164.89347346,8.309e-05,2]
[423119441,1779865838000,-3303.66290768,8.309e-05,2]
[423119443,1779865838000,-977.39074962,8.309e-05,2]
[423119439,1779865838000,-599.32654013,8.308e-05,2]
[423119444,1779865838000,-8955.59232502,8.309e-05,2]
[423119543,1779865840000,-556.00925131,8.309e-05,2]
[423119591,1779865841000,-4408.26656787,8.309e-05,2]
[423119589,1779865841000,-97.41661079,8.309e-05,2]
[423119593,1779865841000,-379.72335834,8.309e-05,2]
[423119659,1779865844000,-300.0,8.382e-05,2]
[423119653,1779865844000,-176.554851,8.374e-05,2]
[423119656,1779865844000,-0.07448023,8.382e-05,2]
[423119657,1779865844000,-299.92551977,8.382e-05,2]
[423119652,1779865844000,-1900.4580253,8.314e-05,2]
[423119655,1779865844000,-300.0,8.382e-05,2]
[423119658,1779865844000,-300.0,8.382e-05,2]
[423119651,1779865844000,-1456.85099671,8.309e-05,2]
[423119654,1779865844000,-300.0,8.382e-05,2]
[423119660,1779865844000,-300.0,8.382e-05,2]
[423119665,1779865844000,-300.0,8.382e-05,2]
[423119662,1779865844000,-182.03412472,8.382e-05,2]
[423119664,1779865844000,-300.0,8.382e-05,2]
[423119666,1779865844000,-300.0,8.382e-05,2]
[423119668,1779865844000,-300.0,8.382e-05,2]
[423119663,1779865844000,-300.0,8.382e-05,2]
[423119667,1779865844000,-300.0,8.382e-05,2]
[423119669,1779865844000,-300.0,8.382e-05,2]
[423119670,1779865844000,-152.0,8.513e-05,7]
[423119671,1779865844000,-344.95775447,8.582e-05,2]
[423119661,1779865844000,-117.96587528,8.382e-05,2]
[423119711,1779866722000,-361.97383638,7.354e-05,2]
[423119710,1779866722000,-519.9324533,7.317e-05,2]
[423119712,1779866723000,-5000.0,7.391e-05,2]
[423119713,1779866723000,-300.0,7.465e-05,2]
[423119716,1779866723000,-227.0,7.465e-05,2]
[423119714,1779866723000,-300.0,7.465e-05,2]
[423119717,1779866723000,-500.0,7.465e-05,2]
[423119718,1779866723000,-398.58690881,7.465e-05,2]
[423119719,1779866723000,-2092.50680151,7.466e-05,2]
[423119715,1779866723000,-300.0,7.465e-05,2]
[423119720,1779866726000,-2907.49319849,7.466e-05,2]
[423119722,1779866745000,-4840.62959638,7.391e-05,2]
[423119721,1779866745000,-278.019,7.317e-05,2]
[423119740,1779866892000,-236.0497915,7.434e-05,2]
[423119819,1779867032000,-500.0,8.185e-05,2]
[423119806,1779867032000,-436.59891575,8.185e-05,2]
[423119817,1779867032000,-500.0,8.185e-05,2]
[423119796,1779867032000,-89.35520491,8.106e-05,2]
[423119809,1779867032000,-500.0,8.185e-05,2]
[423119794,1779867032000,-175.74138,8.027e-05,2]
[423119800,1779867032000,-500.0,8.185e-05,2]
[423119804,1779867032000,-63.40108425,8.185e-05,2]
[423119798,1779867032000,-265.37915474,8.106e-05,2]
[423119825,1779867032000,-500.0,8.185e-05,2]
[423119802,1779867032000,-500.0,8.185e-05,2]
[423119815,1779867032000,-500.0,8.185e-05,2]
[423119835,1779867032000,-2581.36439249,8.186e-05,2]
[423119837,1779867032000,-763.77151649,8.186e-05,2]
[423119833,1779867032000,-406.30584553,8.186e-05,2]
[423119831,1779867032000,-20879.69307155,8.186e-05,2]
[423119829,1779867032000,-400.0,8.185e-05,2]
[423119811,1779867032000,-500.0,8.185e-05,2]
[423119813,1779867032000,-305.59713993,8.185e-05,2]
[423119823,1779867032000,-500.0,8.185e-05,2]
[423119821,1779867032000,-500.0,8.185e-05,2]
[423119827,1779867032000,-500.0,8.185e-05,2]
[423119925,1779867038000,-820.992352,8.186e-05,2]
[423119926,1779867038000,-24210.89188236,8.186e-05,2]
[423119924,1779867038000,-580.46239662,8.186e-05,2]
[423120079,1779867045000,-2185.89669367,8.186e-05,2]
[423120078,1779867045000,-499.48143251,8.186e-05,2]
[423120080,1779867045000,-659.7749991,8.186e-05,2]
[423120089,1779867046000,-6885.3237992,8.186e-05,2]
[423120088,1779867046000,-11880.66027409,8.186e-05,2]
[423120097,1779867338000,-1000.0,7.707e-05,2]
[423120098,1779867339000,-1000.0,7.707e-05,2]
[423120100,1779867362000,-1000.0,7.707e-05,2]
[423120101,1779867368000,-271.4140989,7.707e-05,2]
[423120102,1779867368000,-354.17967246,7.746e-05,2]
[423120103,1779867432000,-1000.0,7.707e-05,2]
[423120104,1779867433000,-1000.0,7.707e-05,2]
[423120105,1779867434000,-1000.0,7.707e-05,2]
[423120106,1779867435000,-1000.0,7.707e-05,2]
[423120107,1779867436000,-1000.0,7.63e-05,2]
[423120108,1779867437000,-1000.0,7.63e-05,2]
[423120110,1779867438000,-375.68974181,7.707e-05,2]
[423120109,1779867438000,-624.31025819,7.63e-05,2]
[423120111,1779867439000,-275.34099118,7.707e-05,2]
[423120118,1779867584000,-456.7502812,7.448e-05,2]
[423120120,1779867635000,1107.82,0.00017808,120]
[423120124,1779867810000,-2362.0,7.71e-05,2]
[423120127,1779867924000,-175.74138,7.75e-05,2]
[423120126,1779867924000,-63.865,7.71e-05,2]
[423120125,1779867924000,-4236.28195971,7.633e-05,2]
[423120128,1779867965000,-524.0,7.768e-05,2]
[423120129,1779867980000,-156206.72444532,0.00018,120]
[423120132,1779867980000,-200.0,0.00018975,120]
[423120131,1779867980000,-200.0,0.000189,120]
[423120130,1779867980000,-200.0,0.00018872,120]
[423120135,1779867980000,-200.0,0.00019111,120]
[423120134,1779867980000,-200.0,0.00019094,120]
[423120136,1779867980000,-200.0,0.00019146,120]
[423120137,1779867980000,-155.90207886,0.0001917,120]
[423120133,1779867980000,-200.0,0.00019075,120]
[423120248,1779868232000,-395.18792757,7.27e-05,2]
[423120246,1779868232000,-3283.2454908,7.27e-05,2]
[423120234,1779868232000,-406.31779836,7.27e-05,2]
[423120360,1779868238000,-503.96970968,7.843e-05,2]
[423120365,1779868238000,-1993.77396266,7.946e-05,2]
[423120364,1779868238000,-114117.39582416,7.946e-05,2]
[423120362,1779868238000,-360.95607901,7.867e-05,2]
[423120363,1779868238000,-183.48793948,7.946e-05,2]
[423120358,1779868238000,-455.9198614,7.417e-05,2]
[423120359,1779868238000,-456.7502812,7.417e-05,2]
[423120367,1779868238000,-27755.4538012,8.031e-05,2]
[423120356,1779868238000,-270.0,7.416e-05,2]
[423120355,1779868238000,-300.0,7.416e-05,2]
[423120353,1779868238000,-915.24878327,7.27e-05,2]
[423120354,1779868238000,-5000.0,7.343e-05,2]
[423120352,1779868238000,-880.61434906,7.197e-05,2]
[423120351,1779868238000,-3991.7298555,7.197e-05,2]
[423120357,1779868238000,-300.0,7.416e-05,2]
[423120368,1779868238000,-151.0,8.031e-05,2]
[423120361,1779868238000,-2013.86295987,7.843e-05,2]
[423120370,1779868238000,-183.48793947,8.037e-05,2]
[423120384,1779868238000,-247.09180031,8.2e-05,2]
[423120366,1779868238000,-198.0135968,8.031e-05,2]
[423120382,1779868238000,-420.0,8.158e-05,2]
[423120383,1779868238000,-247.09180031,8.2e-05,2]
[423120381,1779868238000,-160.0,8.153e-05,2]
[423120379,1779868238000,-151.0,8.055e-05,2]
[423120380,1779868238000,-160.0,8.153e-05,2]
[423120377,1779868238000,-2230.8078012,8.055e-05,2]
[423120385,1779868238000,-245.93367974,8.2e-05,2]
[423120374,1779868238000,-151.0,8.046e-05,2]
[423120378,1779868238000,-17177.1306601,8.055e-05,2]
[423120375,1779868238000,-151.0,8.046e-05,2]
[423120373,1779868238000,-151.0,8.046e-05,2]
[423120372,1779868238000,-151.0,8.046e-05,2]
[423120369,1779868238000,-151.0,8.031e-05,2]
[423120376,1779868238000,-152.0,8.054e-05,2]
[423120371,1779868238000,-45625.5160916,8.046e-05,2]
[423120426,1779868239000,-500.0,8.219e-05,2]
[423120423,1779868239000,-500.0,8.219e-05,2]
[423120421,1779868239000,-500.0,8.219e-05,2]
[423120429,1779868239000,-500.0,8.219e-05,2]
[423120425,1779868239000,-500.0,8.219e-05,2]
[423120427,1779868239000,-500.0,8.219e-05,2]
[423120424,1779868239000,-500.0,8.219e-05,2]
[423120422,1779868239000,-500.0,8.219e-05,2]
[423120420,1779868239000,-575.13,8.219e-05,2]
[423120430,1779868239000,-500.0,8.219e-05,2]
[423120419,1779868239000,-500.0,8.219e-05,2]
[423120428,1779868239000,-500.0,8.219e-05,2]
[423120432,1779868239000,-500.0,8.219e-05,2]
[423120436,1779868239000,-500.0,8.219e-05,2]
[423120434,1779868239000,-500.0,8.219e-05,2]
[423120433,1779868239000,-500.0,8.219e-05,2]
[423120435,1779868239000,-500.0,8.219e-05,2]
[423120442,1779868239000,-500.0,8.219e-05,2]
[423120437,1779868239000,-500.0,8.219e-05,2]
[423120417,1779868239000,-500.0,8.219e-05,2]
[423120441,1779868239000,-500.0,8.219e-05,2]
[423120439,1779868239000,-500.0,8.219e-05,2]
[423120438,1779868239000,-500.0,8.219e-05,2]
[423120440,1779868239000,-151.62656856,8.219e-05,2]
[423120443,1779868239000,-573.2,8.219e-05,2]
[423120445,1779868239000,-500.0,8.219e-05,2]
[423120444,1779868239000,-500.0,8.219e-05,2]
[423120431,1779868239000,-640.50568057,8.219e-05,2]
[423120418,1779868239000,-500.0,8.219e-05,2]
[423120406,1779868239000,-500.0,8.219e-05,2]
[423120416,1779868239000,-500.0,8.219e-05,2]
[423120448,1779868239000,-500.0,8.219e-05,2]
[423120386,1779868239000,-245.93367974,8.2e-05,2]
[423120387,1779868239000,-500.0,8.219e-05,2]
[423120388,1779868239000,-500.0,8.219e-05,2]
[423120389,1779868239000,-500.0,8.219e-05,2]
[423120390,1779868239000,-500.0,8.219e-05,2]
[423120391,1779868239000,-501.60488927,8.219e-05,2]
[423120393,1779868239000,-500.0,8.219e-05,2]
[423120396,1779868239000,-544.68,8.219e-05,2]
[423120394,1779868239000,-500.0,8.219e-05,2]
[423120395,1779868239000,-543.8,8.219e-05,2]
[423120392,1779868239000,-500.0,8.219e-05,2]
[423120399,1779868239000,-500.0,8.219e-05,2]
[423120401,1779868239000,-500.0,8.219e-05,2]
[423120398,1779868239000,-500.0,8.219e-05,2]
[423120397,1779868239000,-500.0,8.219e-05,2]
[423120400,1779868239000,-956.9599,8.219e-05,2]
[423120402,1779868239000,-500.0,8.219e-05,2]
[423120403,1779868239000,-574.43,8.219e-05,2]
[423120404,1779868239000,-500.0,8.219e-05,2]
[423120405,1779868239000,-500.0,8.219e-05,2]
[423120409,1779868239000,-500.0,8.219e-05,2]
[423120407,1779868239000,-500.0,8.219e-05,2]
[423120408,1779868239000,-500.0,8.219e-05,2]
[423120412,1779868239000,-500.0,8.219e-05,2]
[423120414,1779868239000,-500.0,8.219e-05,2]
[423120410,1779868239000,-500.0,8.219e-05,2]
[423120411,1779868239000,-500.0,8.219e-05,2]
[423120413,1779868239000,-500.0,8.219e-05,2]
[423120415,1779868239000,-555.05,8.219e-05,2]
[423120446,1779868239000,-500.0,8.219e-05,2]
[423120457,1779868239000,-500.0,8.219e-05,2]
[423120454,1779868239000,-500.0,8.219e-05,2]
[423120484,1779868239000,-500.0,8.219e-05,2]
[423120487,1779868239000,-500.0,8.219e-05,2]
[423120483,1779868239000,-500.0,8.219e-05,2]
[423120488,1779868239000,-500.0,8.219e-05,2]
[423120486,1779868239000,-500.0,8.219e-05,2]
[423120492,1779868239000,-500.0,8.219e-05,2]
[423120490,1779868239000,-500.0,8.219e-05,2]
[423120491,1779868239000,-500.0,8.219e-05,2]
[423120489,1779868239000,-500.0,8.219e-05,2]
[423120485,1779868239000,-400.9003332,8.219e-05,2]
[423120494,1779868239000,-500.0,8.219e-05,2]
[423120493,1779868239000,-500.0,8.219e-05,2]
[423120496,1779868239000,-500.0,8.219e-05,2]
[423120482,1779868239000,-500.0,8.219e-05,2]
[423120497,1779868239000,-500.0,8.219e-05,2]
[423120499,1779868239000,-555.43,8.219e-05,2]
[423120501,1779868239000,-500.0,8.219e-05,2]
[423120500,1779868239000,-500.0,8.219e-05,2]
[423120503,1779868239000,-500.0,8.219e-05,2]
[423120502,1779868239000,-500.0,8.219e-05,2]
[423120504,1779868239000,-500.0,8.219e-05,2]
[423120506,1779868239000,-500.0,8.219e-05,2]
[423120507,1779868239000,-500.0,8.219e-05,2]
[423120505,1779868239000,-500.0,8.219e-05,2]
[423120509,1779868239000,-500.0,8.219e-05,2]
[423120508,1779868239000,-500.0,8.219e-05,2]
[423120510,1779868239000,-500.0,8.219e-05,2]
[423120450,1779868239000,-500.0,8.219e-05,2]
[423120498,1779868239000,-500.0,8.219e-05,2]
[423120480,1779868239000,-500.0,8.219e-05,2]
[423120495,1779868239000,-500.0,8.219e-05,2]
[423120478,1779868239000,-500.0,8.219e-05,2]
[423120456,1779868239000,-500.0,8.219e-05,2]
[423120481,1779868239000,-500.0,8.219e-05,2]
[423120449,1779868239000,-500.0,8.219e-05,2]
[423120452,1779868239000,-500.0,8.219e-05,2]
[423120451,1779868239000,-500.0,8.219e-05,2]
[423120447,1779868239000,-500.0,8.219e-05,2]
[423120455,1779868239000,-500.0,8.219e-05,2]
[423120453,1779868239000,-500.0,8.219e-05,2]
[423120458,1779868239000,-500.0,8.219e-05,2]
[423120461,1779868239000,-500.0,8.219e-05,2]
[423120460,1779868239000,-500.0,8.219e-05,2]
[423120463,1779868239000,-500.0,8.219e-05,2]
[423120462,1779868239000,-500.0,8.219e-05,2]
[423120466,1779868239000,-500.0,8.219e-05,2]
[423120459,1779868239000,-500.0,8.219e-05,2]
[423120474,1779868239000,-500.0,8.219e-05,2]
[423120465,1779868239000,-500.0,8.219e-05,2]
[423120468,1779868239000,-500.0,8.219e-05,2]
[423120467,1779868239000,-500.0,8.219e-05,2]
[423120469,1779868239000,-500.0,8.219e-05,2]
[423120471,1779868239000,-500.0,8.219e-05,2]
[423120477,1779868239000,-500.0,8.219e-05,2]
[423120473,1779868239000,-500.0,8.219e-05,2]
[423120479,1779868239000,-500.0,8.219e-05,2]
[423120475,1779868239000,-500.0,8.219e-05,2]
[423120472,1779868239000,-500.0,8.219e-05,2]
[423120464,1779868239000,-500.0,8.219e-05,2]
[423120476,1779868239000,-500.0,8.219e-05,2]
[423120470,1779868239000,-500.0,8.219e-05,2]
[423120555,1779868240000,-500.0,8.219e-05,2]
[423120556,1779868240000,-500.0,8.219e-05,2]
[423120546,1779868240000,-500.0,8.219e-05,2]
[423120558,1779868240000,-500.0,8.219e-05,2]
[423120552,1779868240000,-500.0,8.219e-05,2]
[423120554,1779868240000,-500.0,8.219e-05,2]
[423120548,1779868240000,-500.0,8.219e-05,2]
[423120551,1779868240000,-500.0,8.219e-05,2]
[423120550,1779868240000,-500.0,8.219e-05,2]
[423120549,1779868240000,-500.0,8.219e-05,2]
[423120547,1779868240000,-500.97193915,8.219e-05,2]
[423120557,1779868240000,-612.55157488,8.219e-05,2]
[423120553,1779868240000,-500.0,8.219e-05,2]
[423120559,1779868240000,-279.39279402,8.219e-05,2]
[423120573,1779868240000,-500.0,8.219e-05,2]
[423120564,1779868240000,-500.0,8.219e-05,2]
[423120567,1779868240000,-500.0,8.219e-05,2]
[423120562,1779868240000,-500.0,8.219e-05,2]
[423120566,1779868240000,-639.8865092,8.219e-05,2]
[423120568,1779868240000,-500.0,8.219e-05,2]
[423120565,1779868240000,-500.0,8.219e-05,2]
[423120561,1779868240000,-500.0,8.219e-05,2]
[423120569,1779868240000,-500.0,8.219e-05,2]
[423120563,1779868240000,-500.0,8.219e-05,2]
[423120570,1779868240000,-500.0,8.219e-05,2]
[423120571,1779868240000,-500.0,8.219e-05,2]
[423120572,1779868240000,-503.35,8.219e-05,2]
[423120574,1779868240000,-500.0,8.219e-05,2]
[423120545,1779868240000,-500.0,8.219e-05,2]
[423120560,1779868240000,-500.0,8.219e-05,2]
[423120543,1779868240000,-439.50056679,8.219e-05,2]
[423120515,1779868240000,-209.70892771,8.219e-05,2]
[423120542,1779868240000,-646.95,8.219e-05,2]
[423120576,1779868240000,-151.0,8.219e-05,2]
[423120512,1779868240000,-599.78733475,8.219e-05,2]
[423120511,1779868240000,-500.0,8.219e-05,2]
[423120513,1779868240000,-151.5,8.219e-05,2]
[423120517,1779868240000,-500.0,8.219e-05,2]
[423120516,1779868240000,-500.0,8.219e-05,2]
[423120514,1779868240000,-151.5,8.219e-05,2]
[423120519,1779868240000,-500.0,8.219e-05,2]
[423120518,1779868240000,-500.0,8.219e-05,2]
[423120520,1779868240000,-500.0,8.219e-05,2]
[423120521,1779868240000,-504.3605417,8.219e-05,2]
[423120530,1779868240000,-539.25,8.219e-05,2]
[423120522,1779868240000,-500.0,8.219e-05,2]
[423120523,1779868240000,-500.0,8.219e-05,2]
[423120537,1779868240000,-500.0,8.219e-05,2]
[423120524,1779868240000,-500.0,8.219e-05,2]
[423120526,1779868240000,-500.0,8.219e-05,2]
[423120528,1779868240000,-500.0,8.219e-05,2]
[423120527,1779868240000,-500.0,8.219e-05,2]
[423120529,1779868240000,-514.45976703,8.219e-05,2]
[423120531,1779868240000,-500.0,8.219e-05,2]
[423120533,1779868240000,-500.0,8.219e-05,2]
[423120532,1779868240000,-500.0,8.219e-05,2]
[423120534,1779868240000,-500.0,8.219e-05,2]
[423120535,1779868240000,-500.0,8.219e-05,2]
[423120540,1779868240000,-500.0,8.219e-05,2]
[423120539,1779868240000,-500.0,8.219e-05,2]
[423120538,1779868240000,-500.0,8.219e-05,2]
[423120536,1779868240000,-500.0,8.219e-05,2]
[423120541,1779868240000,-500.0,8.219e-05,2]
[423120525,1779868240000,-500.0,8.219e-05,2]
[423120577,1779868240000,-500.0,8.219e-05,2]
[423120619,1779868240000,-500.0,8.219e-05,2]
[423120581,1779868240000,-500.0,8.219e-05,2]
[423120615,1779868240000,-299.9392679,8.219e-05,2]
[423120617,1779868240000,-500.0,8.219e-05,2]
[423120616,1779868240000,-1332.49,8.219e-05,2]
[423120627,1779868240000,-500.0,8.219e-05,2]
[423120660,1779868240000,-500.0,8.219e-05,2]
[423120621,1779868240000,-500.0,8.219e-05,2]
[423120618,1779868240000,-500.0,8.219e-05,2]
[423120620,1779868240000,-500.0,8.219e-05,2]
[423120624,1779868240000,-500.0,8.219e-05,2]
[423120625,1779868240000,-500.0,8.219e-05,2]
[423120622,1779868240000,-500.0,8.219e-05,2]
[423120626,1779868240000,-1519.97,8.219e-05,2]
[423120629,1779868240000,-500.0,8.219e-05,2]
[423120628,1779868240000,-500.0,8.219e-05,2]
[423120630,1779868240000,-556.96189949,8.219e-05,2]
[423120633,1779868240000,-500.0,8.219e-05,2]
[423120631,1779868240000,-561.49414935,8.219e-05,2]
[423120642,1779868240000,-500.0,8.219e-05,2]
[423120644,1779868240000,-500.0,8.219e-05,2]
[423120645,1779868240000,-1159.28,8.219e-05,2]
[423120647,1779868240000,-500.0,8.219e-05,2]
[423120649,1779868240000,-510.97593477,8.219e-05,2]
[423120636,1779868240000,-500.0,8.219e-05,2]
[423120638,1779868240000,-958.0,8.219e-05,2]
[423120640,1779868240000,-500.0,8.219e-05,2]
[423120651,1779868240000,-500.0,8.219e-05,2]
[423120653,1779868240000,-500.0,8.219e-05,2]
[423120655,1779868240000,-500.0,8.219e-05,2]
[423120658,1779868240000,-500.42792502,8.219e-05,2]
[423120613,1779868240000,-500.0,8.219e-05,2]
[423120614,1779868240000,-500.0,8.219e-05,2]
[423120580,1779868240000,-500.0,8.219e-05,2]
[423120612,1779868240000,-500.0,8.219e-05,2]
[423120579,1779868240000,-500.0,8.219e-05,2]
[423120578,1779868240000,-500.0,8.219e-05,2]
[423120582,1779868240000,-500.0,8.219e-05,2]
[423120583,1779868240000,-500.0,8.219e-05,2]
[423120575,1779868240000,-151.0,8.219e-05,2]
[423120584,1779868240000,-500.0,8.219e-05,2]
[423120587,1779868240000,-151.0,8.219e-05,2]
[423120585,1779868240000,-500.0,8.219e-05,2]
[423120611,1779868240000,-500.0,8.219e-05,2]
[423120599,1779868240000,-151.0,8.219e-05,2]
[423120590,1779868240000,-500.0,8.219e-05,2]
[423120596,1779868240000,-151.0,8.219e-05,2]
[423120594,1779868240000,-151.0,8.219e-05,2]
[423120592,1779868240000,-500.0,8.219e-05,2]
[423120588,1779868240000,-500.79255613,8.219e-05,2]
[423120589,1779868240000,-151.0,8.219e-05,2]
[423120593,1779868240000,-151.0,8.219e-05,2]
[423120597,1779868240000,-151.0,8.219e-05,2]
[423120609,1779868240000,-364.08951944,8.219e-05,2]
[423120608,1779868240000,-500.0,8.219e-05,2]
[423120610,1779868240000,-500.0,8.219e-05,2]
[423120606,1779868240000,-500.0,8.219e-05,2]
[423120605,1779868240000,-500.0,8.219e-05,2]
[423120607,1779868240000,-500.708008,8.219e-05,2]
[423120604,1779868240000,-500.0,8.219e-05,2]
[423120602,1779868240000,-297.19952,8.219e-05,2]
[423120600,1779868240000,-151.0,8.219e-05,2]
[423120601,1779868240000,-151.0,8.219e-05,2]
[423120598,1779868240000,-151.0,8.219e-05,2]
[423120591,1779868240000,-151.0,8.219e-05,2]
[423120603,1779868240000,-500.0,8.219e-05,2]
[423120745,1779868241000,-883.0,8.219e-05,2]
[423120741,1779868241000,-883.0,8.219e-05,2]
[423120737,1779868241000,-883.0,8.219e-05,2]
[423120751,1779868241000,-883.0,8.219e-05,2]
[423120752,1779868241000,-500.0,8.219e-05,2]
[423120754,1779868241000,-883.0,8.219e-05,2]
[423120731,1779868241000,-883.0,8.219e-05,2]
[423120739,1779868241000,-500.0,8.219e-05,2]
[423120735,1779868241000,-883.0,8.219e-05,2]
[423120749,1779868241000,-883.0,8.219e-05,2]
[423120747,1779868241000,-500.0,8.219e-05,2]
[423120733,1779868241000,-883.0,8.219e-05,2]
[423120743,1779868241000,-500.0,8.219e-05,2]
[423120756,1779868241000,-883.0,8.219e-05,2]
[423120797,1779868241000,-5669.23,8.219e-05,2]
[423120760,1779868241000,-500.0,8.219e-05,2]
[423120761,1779868241000,-883.0,8.219e-05,2]
[423120773,1779868241000,-904.62908615,8.219e-05,2]
[423120777,1779868241000,-500.0,8.219e-05,2]
[423120771,1779868241000,-883.0,8.219e-05,2]
[423120775,1779868241000,-500.0,8.219e-05,2]
[423120779,1779868241000,-500.0,8.219e-05,2]
[423120763,1779868241000,-500.0,8.219e-05,2]
[423120769,1779868241000,-500.0,8.219e-05,2]
[423120765,1779868241000,-883.0,8.219e-05,2]
[423120767,1779868241000,-500.0,8.219e-05,2]
[423120781,1779868241000,-500.0,8.219e-05,2]
[423120783,1779868241000,-500.0,8.219e-05,2]
[423120729,1779868241000,-883.0,8.219e-05,2]
[423120758,1779868241000,-500.0,8.219e-05,2]
[423120720,1779868241000,-883.0,8.219e-05,2]
[423120692,1779868241000,-500.0,8.219e-05,2]
[423120721,1779868241000,-223.24355827,8.219e-05,2]
[423120799,1779868241000,-430.04837568,8.219e-05,2]
[423120668,1779868241000,-500.0,8.219e-05,2]
[423120670,1779868241000,-424.43254655,8.219e-05,2]
[423120672,1779868241000,-500.0,8.219e-05,2]
[423120674,1779868241000,-500.0,8.219e-05,2]
[423120676,1779868241000,-500.0,8.219e-05,2]
[423120662,1779868241000,-500.0,8.219e-05,2]
[423120664,1779868241000,-500.0,8.219e-05,2]
[423120666,1779868241000,-500.0,8.219e-05,2]
[423120682,1779868241000,-500.0,8.219e-05,2]
[423120680,1779868241000,-500.0,8.219e-05,2]
[423120678,1779868241000,-500.0,8.219e-05,2]
[423120686,1779868241000,-500.0,8.219e-05,2]
[423120688,1779868241000,-883.0,8.219e-05,2]
[423120694,1779868241000,-883.0,8.219e-05,2]
[423120690,1779868241000,-500.0,8.219e-05,2]
[423120696,1779868241000,-500.0,8.219e-05,2]
[423120702,1779868241000,-500.0,8.219e-05,2]
[423120700,1779868241000,-500.0,8.219e-05,2]
[423120684,1779868241000,-500.0,8.219e-05,2]
[423120698,1779868241000,-500.0,8.219e-05,2]
[423120704,1779868241000,-500.0,8.219e-05,2]
[423120707,1779868241000,-322.54840883,8.219e-05,2]
[423120706,1779868241000,-883.0,8.219e-05,2]
[423120709,1779868241000,-883.0,8.219e-05,2]
[423120711,1779868241000,-613.07377595,8.219e-05,2]
[423120713,1779868241000,-883.0,8.219e-05,2]
[423120717,1779868241000,-883.0,8.219e-05,2]
[423120715,1779868241000,-883.0,8.219e-05,2]
[423120723,1779868241000,-883.0,8.219e-05,2]
[423120801,1779868241000,-500.0,8.219e-05,2]
[423120803,1779868241000,-236.15786682,8.219e-05,2]
[423120919,1779868241000,-500.0,8.493e-05,2]
[423120864,1779868241000,-500.0,8.493e-05,2]
[423120862,1779868241000,-458.58428102,8.493e-05,2]
[423120867,1779868241000,-500.0,8.493e-05,2]
[423120887,1779868241000,-500.0,8.493e-05,2]
[423120877,1779868241000,-500.0,8.493e-05,2]
[423120879,1779868241000,-500.0,8.493e-05,2]
[423120873,1779868241000,-530.15,8.493e-05,2]
[423120875,1779868241000,-625.57846588,8.493e-05,2]
[423120869,1779868241000,-500.0,8.493e-05,2]
[423120871,1779868241000,-500.0,8.493e-05,2]
[423120881,1779868241000,-500.0,8.493e-05,2]
[423120883,1779868241000,-500.0,8.493e-05,2]
[423120889,1779868241000,-500.0,8.493e-05,2]
[423120891,1779868241000,-500.0,8.493e-05,2]
[423120893,1779868241000,-500.0,8.493e-05,2]
[423120895,1779868241000,-500.0,8.493e-05,2]
[423120897,1779868241000,-562.04,8.493e-05,2]
[423120899,1779868241000,-500.0,8.493e-05,2]
[423120903,1779868241000,-214.28,8.493e-05,2]
[423120901,1779868241000,-500.0,8.493e-05,2]
[423120911,1779868241000,-500.0,8.493e-05,2]